[Event "*** Titled Tuesday Blitz"]
[Site "Chess.com"]
[Date "2018.07.03"]
[Round "2"]
[White "Art10ECHR"]
[Black "jeetjain"]
[Result "1-0"]
[WhiteElo "2310"]
[BlackElo "2427"]
[TimeControl "180+2"]
[EndTime "13:24:35 PDT"]
[Termination "Art10ECHR won by resignation"]

1. Nf3 {[%clk 0:03:01.9]} 1... d5 {[%clk 0:03:00.1]} 2. c4 {[%clk 0:03:02.2]}
2... e6 {[%clk 0:03:00.9]} 3. g3 {[%clk 0:03:02.8]} 3... Nf6 {[%clk 0:03:01.1]}
4. Bg2 {[%clk 0:03:04.4]} 4... c5 {[%clk 0:02:56.5]} 5. O-O {[%clk 0:03:02.6]}
5... Nc6 {[%clk 0:02:55.7]} 6. cxd5 {[%clk 0:02:59.4]} 6... exd5 {[%clk
0:02:55.4]} 7. d4 {[%clk 0:03:00.4]} 7... Be7 {[%clk 0:02:55.1]} 8. dxc5 {[%clk
0:03:00.1]} 8... Bxc5 {[%clk 0:02:55.8]} 9. a3 {[%clk 0:03:01.5]} 9... O-O
{[%clk 0:02:56.1]} 10. b4 {[%clk 0:03:02.2]} 10... Be7 {[%clk 0:02:55.2]} 11.
Bb2 {[%clk 0:03:03.5]} 11... Be6 {[%clk 0:02:54.8]} 12. Nc3 {[%clk 0:03:04.5]}
12... Rc8 {[%clk 0:02:51]} 13. Nd4 {[%clk 0:03:01.6]} 13... Qb6 {[%clk
0:02:14.1]} 14. Na4 {[%clk 0:02:56.2]} 14... Qd8 {[%clk 0:02:13.3]} 15. Rc1
{[%clk 0:02:51.3]} 15... Qd7 {[%clk 0:02:09.1]} 16. Nc5 {[%clk 0:02:50]} 16...
Bxc5 {[%clk 0:02:09.4]} 17. Rxc5 {[%clk 0:02:50.6]} 17... Nxd4 {[%clk
0:02:05.8]} 18. Qxd4 {[%clk 0:02:50.1]} 18... Rxc5 {[%clk 0:02:06.4]} 19. Qxc5
{[%clk 0:02:50.8]} 19... b6 {[%clk 0:02:05.6]} 20. Qe3 {[%clk 0:02:45.3]} 20...
Ne8 {[%clk 0:01:55.3]} 21. Rc1 {[%clk 0:02:44.2]} 21... f6 {[%clk 0:01:47.8]}
22. Qd4 {[%clk 0:02:15.5]} 22... Nc7 {[%clk 0:01:42.4]} 23. e3 {[%clk
0:02:08.4]} 23... Nb5 {[%clk 0:01:42.3]} 24. Qd3 {[%clk 0:02:09.1]} 24... Rd8
{[%clk 0:01:35.1]} 25. a4 {[%clk 0:02:01.4]} 25... Nc7 {[%clk 0:01:34.2]} 26. b5
{[%clk 0:01:59.2]} 26... Ne8 {[%clk 0:01:26.5]} 27. Ba3 {[%clk 0:01:55.9]} 27...
Bf5 {[%clk 0:01:13.8]} 28. Qd4 {[%clk 0:01:52.5]} 28... Be6 {[%clk 0:01:06.8]}
29. Rc6 {[%clk 0:01:49.3]} 29... Bf7 {[%clk 0:01:04]} 30. Bf3 {[%clk 0:01:48.9]}
30... Nc7 {[%clk 0:01:03.8]} 31. Bg4 {[%clk 0:01:25]} 31... f5 {[%clk
0:01:04.3]} 32. Bf3 {[%clk 0:01:24.3]} 32... Ne6 {[%clk 0:01:04.7]} 33. Qe5
{[%clk 0:01:21.9]} 33... Ng5 {[%clk 0:01:02.9]} 34. Bg2 {[%clk 0:01:16.9]} 34...
Re8 {[%clk 0:01:02.8]} 35. Qc3 {[%clk 0:01:09.2]} 35... Ne4 {[%clk 0:01:00.9]}
36. Qd4 {[%clk 0:01:07.8]} 36... Rc8 {[%clk 0:00:58]} 37. Bb2 {[%clk 0:00:53.3]}
37... Nf6 {[%clk 0:00:57.7]} 38. Rxf6 {[%clk 0:00:51.6]} 38... gxf6 {[%clk
0:00:58.1]} 39. Qxf6 {[%clk 0:00:52.7]} 39... Kf8 {[%clk 0:00:54.4]} 40. Bh3
{[%clk 0:00:45.8]} 40... Qe6 {[%clk 0:00:40.6]} 41. Qh8+ {[%clk 0:00:39.4]}
41... Ke7 {[%clk 0:00:41]} 42. Qxh7 {[%clk 0:00:37.8]} 42... Rc4 {[%clk
0:00:19]} 43. Bxf5 {[%clk 0:00:37.1]} 43... Qd6 {[%clk 0:00:16]} 44. Qg7 {[%clk
0:00:28.1]} 44... Rxa4 {[%clk 0:00:10.8]} 45. Qg5+ {[%clk 0:00:28.4]} 45... Ke8
{[%clk 0:00:10.6]} 46. Bf6 {[%clk 0:00:28.4]} 46... Rb4 {[%clk 0:00:09.6]} 47.
Qg7 {[%clk 0:00:26.5]} 47... Qf8 {[%clk 0:00:10.8]} 48. Bd7+ {[%clk 0:00:21.9]}
48... Kxd7 {[%clk 0:00:11.9]} 49. Qxf8 {[%clk 0:00:23]} 49... Rb1+ {[%clk
0:00:13.1]} 50. Kg2 {[%clk 0:00:23.5]} 50... Bh5 {[%clk 0:00:15]} 51. Qe7+
{[%clk 0:00:22.8]} 1-0

[Event "*** Titled Tuesday Blitz"]
[Site "Chess.com"]
[Date "2018.07.03"]
[Round "2"]
[White "chesstatour"]
[Black "tgpgoat"]
[Result "1-0"]
[WhiteElo "2045"]
[BlackElo "1973"]
[TimeControl "180+2"]
[EndTime "13:24:35 PDT"]
[Termination "chesstatour won by resignation"]

1. c4 {[%clk 0:03:01.9]} 1... c5 {[%clk 0:02:59.1]} 2. Nf3 {[%clk 0:03:01.7]}
2... Nc6 {[%clk 0:02:59.9]} 3. d4 {[%clk 0:03:01.6]} 3... cxd4 {[%clk 0:03:01]}
4. Nxd4 {[%clk 0:03:02]} 4... g6 {[%clk 0:03:02.5]} 5. Nc3 {[%clk 0:03:01.9]}
5... Bg7 {[%clk 0:03:03.2]} 6. Nc2 {[%clk 0:03:03.1]} 6... Nf6 {[%clk
0:03:02.8]} 7. g3 {[%clk 0:03:01.6]} 7... d6 {[%clk 0:03:03.7]} 8. Bg2 {[%clk
0:03:02.2]} 8... O-O {[%clk 0:03:04]} 9. O-O {[%clk 0:03:02.9]} 9... Bd7 {[%clk
0:03:04.9]} 10. e4 {[%clk 0:03:00.8]} 10... Rc8 {[%clk 0:03:03.5]} 11. b3 {[%clk
0:03:00.1]} 11... Nxe4 {[%clk 0:02:58.4]} 12. Nxe4 {[%clk 0:02:58.7]} 12... Bxa1
{[%clk 0:02:58]} 13. Nxa1 {[%clk 0:02:59.6]} 13... Bf5 {[%clk 0:02:56.4]} 14.
Nc3 {[%clk 0:02:57.6]} 14... Qd7 {[%clk 0:02:53.1]} 15. Re1 {[%clk 0:02:56.8]}
15... Bh3 {[%clk 0:02:48]} 16. Bh1 {[%clk 0:02:29.7]} 16... Ne5 {[%clk
0:02:42.9]} 17. Nd5 {[%clk 0:02:14.6]} 17... Bg4 {[%clk 0:02:24.7]} 18. f3
{[%clk 0:01:56.3]} 18... Be6 {[%clk 0:02:23.6]} 19. Bh6 {[%clk 0:01:49.3]} 19...
Rfe8 {[%clk 0:02:22.7]} 20. Nc2 {[%clk 0:01:44.7]} 20... Qc6 {[%clk 0:02:21.1]}
21. Nd4 {[%clk 0:01:36.8]} 21... Qd7 {[%clk 0:02:12.8]} 22. Nxe6 {[%clk
0:01:28.6]} 22... fxe6 {[%clk 0:02:12.9]} 23. Rxe5 {[%clk 0:01:19]} 23... exd5
{[%clk 0:02:09.1]} 24. Rxd5 {[%clk 0:00:58.6]} 24... Qe6 {[%clk 0:02:08.3]} 25.
Qd2 {[%clk 0:00:38.1]} 25... Qf6 {[%clk 0:01:33.4]} 26. Qd4 {[%clk 0:00:21.4]}
26... Qxd4+ {[%clk 0:01:28.6]} 27. Rxd4 {[%clk 0:00:22.5]} 27... b6 {[%clk
0:01:25]} 28. Bd2 {[%clk 0:00:17.7]} 28... Kf7 {[%clk 0:01:15.7]} 29. f4 {[%clk
0:00:18.2]} 29... Ke6 {[%clk 0:01:02.1]} 30. Bg2 {[%clk 0:00:16.7]} 30... Kd7
{[%clk 0:00:59.9]} 31. Bb4 {[%clk 0:00:16.4]} 31... a5 {[%clk 0:00:58.7]} 32.
Bh3+ {[%clk 0:00:15.5]} 32... e6 {[%clk 0:00:54]} 33. Ba3 {[%clk 0:00:14.9]}
33... Kc7 {[%clk 0:00:39.3]} 34. Bxd6+ {[%clk 0:00:15.1]} 34... Kb7 {[%clk
0:00:39.2]} 35. Bg2+ {[%clk 0:00:15.7]} 35... Ka7 {[%clk 0:00:40.1]} 36. Be5
{[%clk 0:00:09.6]} 36... Rcd8 {[%clk 0:00:37.9]} 37. Kf2 {[%clk 0:00:10.1]}
37... Rxd4 {[%clk 0:00:20.4]} 38. Bxd4 {[%clk 0:00:12]} 38... Rd8 {[%clk
0:00:21.5]} 39. Ke3 {[%clk 0:00:13.3]} 39... Rd7 {[%clk 0:00:22.2]} 40. Bc6
{[%clk 0:00:12.2]} 40... Rc7 {[%clk 0:00:23.3]} 41. Bb5 {[%clk 0:00:12.8]} 41...
Kb7 {[%clk 0:00:23.9]} 42. Ke4 {[%clk 0:00:12.2]} 42... Kc8 {[%clk 0:00:21.5]}
43. a3 {[%clk 0:00:13.4]} 43... Kd8 {[%clk 0:00:21.8]} 44. b4 {[%clk 0:00:14.7]}
44... axb4 {[%clk 0:00:22.1]} 45. axb4 {[%clk 0:00:15.6]} 45... Rb7 {[%clk
0:00:22.8]} 46. Bc6 {[%clk 0:00:14.6]} 46... Rb8 {[%clk 0:00:23.5]} 47. c5
{[%clk 0:00:14.2]} 47... bxc5 {[%clk 0:00:24.5]} 48. Bxc5 {[%clk 0:00:14.8]}
48... Kc7 {[%clk 0:00:25.1]} 49. b5 {[%clk 0:00:16.1]} 49... Rg8 {[%clk
0:00:22.2]} 50. Ke5 {[%clk 0:00:16.7]} 50... g5 {[%clk 0:00:22.4]} 51. Kxe6
{[%clk 0:00:13]} 51... gxf4 {[%clk 0:00:23.5]} 52. gxf4 {[%clk 0:00:14.5]} 52...
Rg2 {[%clk 0:00:23]} 53. f5 {[%clk 0:00:14.3]} 53... Rxh2 {[%clk 0:00:24.1]} 54.
Bd6+ {[%clk 0:00:15.2]} 54... Kb6 {[%clk 0:00:24.6]} 55. Bxh2 {[%clk 0:00:16.3]}
1-0

[Event "*** Titled Tuesday Blitz"]
[Site "Chess.com"]
[Date "2018.07.03"]
[Round "2"]
[White "W_Amadeus"]
[Black "yoolund"]
[Result "1-0"]
[WhiteElo "2589"]
[BlackElo "2563"]
[TimeControl "180+2"]
[EndTime "13:24:39 PDT"]
[Termination "W_Amadeus won by resignation"]

1. d4 {[%clk 0:03:01.4]} 1... Nf6 {[%clk 0:02:58.8]} 2. c4 {[%clk 0:03:01.8]}
2... g6 {[%clk 0:03:00.3]} 3. Nc3 {[%clk 0:03:01.1]} 3... Bg7 {[%clk 0:03:01.9]}
4. e4 {[%clk 0:03:01.8]} 4... O-O {[%clk 0:03:03.8]} 5. Nf3 {[%clk 0:03:02.8]}
5... d6 {[%clk 0:03:05.2]} 6. Be2 {[%clk 0:03:04]} 6... Bg4 {[%clk 0:03:06]} 7.
Be3 {[%clk 0:03:04]} 7... Nfd7 {[%clk 0:03:07.3]} 8. Ng1 {[%clk 0:03:05.1]} 8...
Bxe2 {[%clk 0:03:08.3]} 9. Ngxe2 {[%clk 0:03:07]} 9... e5 {[%clk 0:03:09.6]} 10.
d5 {[%clk 0:03:05.3]} 10... f5 {[%clk 0:03:10.7]} 11. f3 {[%clk 0:03:06]} 11...
Bh6 {[%clk 0:03:12.1]} 12. Bf2 {[%clk 0:03:00.7]} 12... a5 {[%clk 0:03:12.8]}
13. O-O {[%clk 0:02:56.7]} 13... Na6 {[%clk 0:03:10]} 14. Nb5 {[%clk 0:02:01.8]}
14... Nac5 {[%clk 0:03:04.7]} 15. Nec3 {[%clk 0:02:02.7]} 15... Nf6 {[%clk
0:02:57.9]} 16. exf5 {[%clk 0:01:06.4]} 16... gxf5 {[%clk 0:02:58.4]} 17. Bxc5
{[%clk 0:01:07.3]} 17... dxc5 {[%clk 0:02:59.7]} 18. d6 {[%clk 0:01:08.8]} 18...
c6 {[%clk 0:01:58.5]} 19. Nc7 {[%clk 0:01:09.2]} 19... Be3+ {[%clk 0:01:58.8]}
20. Kh1 {[%clk 0:01:09.8]} 20... Nh5 {[%clk 0:01:47.4]} 21. f4 {[%clk
0:00:51.2]} 21... Ng3+ {[%clk 0:01:28.1]} 22. hxg3 {[%clk 0:00:51.5]} 22... Rf6
{[%clk 0:01:29.8]} 23. Qh5 {[%clk 0:00:42.8]} 23... Qxd6 {[%clk 0:01:30.6]} 24.
Nxa8 {[%clk 0:00:25.4]} 24... Rh6 {[%clk 0:01:31.8]} 25. Qh3 {[%clk 0:00:25.4]}
25... exf4 {[%clk 0:01:01.6]} 26. Rad1 {[%clk 0:00:09.8]} 26... Qg6 {[%clk
0:00:23.9]} 27. Rd8+ {[%clk 0:00:08.2]} 27... Kf7 {[%clk 0:00:24.2]} 28. Ne2
{[%clk 0:00:06.2]} 28... Rxh3+ {[%clk 0:00:20.1]} 29. gxh3 {[%clk 0:00:07.5]}
29... Qh5 {[%clk 0:00:21.8]} 30. Ng1 {[%clk 0:00:08.8]} 30... Bxg1 {[%clk
0:00:19.5]} 31. Kxg1 {[%clk 0:00:08.6]} 31... fxg3 {[%clk 0:00:20.9]} 32. Rfd1
{[%clk 0:00:05.6]} 32... Qxh3 {[%clk 0:00:19.2]} 33. R8d7+ {[%clk 0:00:04.2]}
33... Kf6 {[%clk 0:00:20.6]} 34. R1d6+ {[%clk 0:00:03.3]} 34... Ke5 {[%clk
0:00:22.3]} 35. Rd2 {[%clk 0:00:03.3]} 35... f4 {[%clk 0:00:21.6]} 36. Re7+
{[%clk 0:00:04.3]} 36... Kf6 {[%clk 0:00:22.9]} 37. Re8 {[%clk 0:00:04.8]} 37...
Kf7 {[%clk 0:00:19]} 38. Re4 {[%clk 0:00:04.3]} 38... Qf5 {[%clk 0:00:17.4]} 39.
Re1 {[%clk 0:00:04.4]} 39... f3 {[%clk 0:00:17.3]} 40. Rf1 {[%clk 0:00:05.8]}
40... h5 {[%clk 0:00:14.1]} 41. Nb6 {[%clk 0:00:06.5]} 41... h4 {[%clk
0:00:15.1]} 42. Nc8 {[%clk 0:00:07.8]} 42... Kg6 {[%clk 0:00:06.7]} 43. Ne7+
{[%clk 0:00:08.3]} 43... Kf6 {[%clk 0:00:07.8]} 44. Nxf5 {[%clk 0:00:10.2]}
44... Kxf5 {[%clk 0:00:09.7]} 45. Rxf3+ {[%clk 0:00:11.5]} 1-0

[Event "*** Titled Tuesday Blitz"]
[Site "Chess.com"]
[Date "2018.07.03"]
[Round "2"]
[White "Orest_Vovk"]
[Black "DSCC1"]
[Result "1/2-1/2"]
[WhiteElo "2230"]
[BlackElo "2109"]
[TimeControl "180+2"]
[EndTime "13:24:46 PDT"]
[Termination "Game drawn by agreement"]

1. g4 {[%clk 0:02:59.3]} 1... d5 {[%clk 0:02:52.3]} 2. h3 {[%clk 0:02:59.2]}
2... c6 {[%clk 0:02:52.5]} 3. Bg2 {[%clk 0:02:58.8]} 3... e5 {[%clk 0:02:53.5]}
4. d4 {[%clk 0:02:59.4]} 4... exd4 {[%clk 0:02:54.7]} 5. Qxd4 {[%clk 0:02:59]}
5... Qf6 {[%clk 0:02:52.3]} 6. Nf3 {[%clk 0:02:59.6]} 6... Qxd4 {[%clk
0:02:52.5]} 7. Nxd4 {[%clk 0:03:01.5]} 7... Bc5 {[%clk 0:02:42.1]} 8. Nb3 {[%clk
0:03:00.5]} 8... Bb6 {[%clk 0:02:43]} 9. N1d2 {[%clk 0:03:01.7]} 9... Ne7 {[%clk
0:02:42.2]} 10. c4 {[%clk 0:03:02.3]} 10... dxc4 {[%clk 0:02:40.7]} 11. Nxc4
{[%clk 0:03:02.6]} 11... Bc7 {[%clk 0:02:42.3]} 12. Be3 {[%clk 0:02:59.4]} 12...
Be6 {[%clk 0:02:42.1]} 13. Rc1 {[%clk 0:02:52.5]} 13... O-O {[%clk 0:02:37.5]}
14. Nca5 {[%clk 0:02:51.6]} 14... Bc8 {[%clk 0:02:36]} 15. O-O {[%clk
0:02:46.9]} 15... Nd7 {[%clk 0:02:20.4]} 16. Rfd1 {[%clk 0:02:46.5]} 16... Nb6
{[%clk 0:02:20.7]} 17. Nc5 {[%clk 0:02:41.8]} 17... Rb8 {[%clk 0:02:18.7]} 18.
Bd2 {[%clk 0:02:31.3]} 18... Ned5 {[%clk 0:01:55.4]} 19. e3 {[%clk 0:02:19.2]}
19... Nd7 {[%clk 0:01:40]} 20. Nxd7 {[%clk 0:01:23.9]} 20... Bxd7 {[%clk
0:01:41.9]} 21. Bxd5 {[%clk 0:01:18.3]} 21... Bxa5 {[%clk 0:01:39.6]} 22. Bxf7+
{[%clk 0:01:05.7]} 22... Rxf7 {[%clk 0:01:40.2]} 23. Bxa5 {[%clk 0:01:07.6]}
23... Be6 {[%clk 0:01:38.2]} 24. a3 {[%clk 0:01:04.2]} 24... h5 {[%clk
0:01:39.3]} 25. Rd4 {[%clk 0:01:00.9]} 25... hxg4 {[%clk 0:01:30]} 26. hxg4
{[%clk 0:01:02.8]} 26... Bd5 {[%clk 0:01:25.4]} 27. e4 {[%clk 0:00:54.9]} 27...
Be6 {[%clk 0:01:06.1]} 28. g5 {[%clk 0:00:55.1]} 28... Rf4 {[%clk 0:01:02.4]}
29. Bc7 {[%clk 0:00:44.8]} 29... Rg4+ {[%clk 0:01:00.6]} 30. Kf1 {[%clk
0:00:44.9]} 30... Rc8 {[%clk 0:00:55.2]} 31. Bd8 {[%clk 0:00:41.8]} 31... Kf7
{[%clk 0:00:29.6]} 32. f3 {[%clk 0:00:38]} 32... Rg3 {[%clk 0:00:24.1]} 33. Kf2
{[%clk 0:00:38.4]} 33... Rh3 {[%clk 0:00:25.2]} 34. Kg2 {[%clk 0:00:38.5]} 34...
Rh5 {[%clk 0:00:19.7]} 35. b4 {[%clk 0:00:33.8]} 35... Ke8 {[%clk 0:00:14]} 36.
Rcd1 {[%clk 0:00:33.9]} 36... Bd5 {[%clk 0:00:10.3]} 37. exd5 {[%clk 0:00:28.5]}
37... Rxd8 {[%clk 0:00:11.4]} 38. dxc6 {[%clk 0:00:29.5]} 38... Rxg5+ {[%clk
0:00:12.3]} 39. Kf2 {[%clk 0:00:30.5]} 39... Rxd4 {[%clk 0:00:07.9]} 40. cxb7
{[%clk 0:00:30]} 40... Rxb4 {[%clk 0:00:09]} 41. axb4 {[%clk 0:00:26.8]} 41...
Rb5 {[%clk 0:00:10.3]} 42. Rd4 {[%clk 0:00:26.9]} 42... Rxb7 {[%clk 0:00:10.8]}
43. Kg3 {[%clk 0:00:27.9]} 43... Rb5 {[%clk 0:00:11.2]} 44. Kg4 {[%clk
0:00:28.5]} 44... a5 {[%clk 0:00:12.3]} 45. bxa5 {[%clk 0:00:28.4]} 45... Rxa5
{[%clk 0:00:14.2]} 46. f4 {[%clk 0:00:29.1]} 46... Kf7 {[%clk 0:00:15.1]} 47.
Rd7+ {[%clk 0:00:29.7]} 47... Kf6 {[%clk 0:00:15.9]} 48. Rd6+ {[%clk 0:00:29.9]}
48... Kf7 {[%clk 0:00:16.7]} 49. f5 {[%clk 0:00:30.8]} 49... Ra1 {[%clk
0:00:17]} 50. Rd7+ {[%clk 0:00:29.6]} 50... Kf6 {[%clk 0:00:17.7]} 51. Rd6+
{[%clk 0:00:30.7]} 51... Kf7 {[%clk 0:00:18.9]} 52. Rd4 {[%clk 0:00:25.9]} 52...
Kf6 {[%clk 0:00:18.3]} 53. Rd6+ {[%clk 0:00:25.3]} 53... Kf7 {[%clk 0:00:19.5]}
54. Rb6 {[%clk 0:00:25.5]} 54... Rg1+ {[%clk 0:00:18.1]} 55. Kf4 {[%clk
0:00:26.5]} 55... Rf1+ {[%clk 0:00:19.2]} 56. Ke5 {[%clk 0:00:27]} 56... Re1+
{[%clk 0:00:20.3]} 57. Kd5 {[%clk 0:00:27]} 57... Rd1+ {[%clk 0:00:19.7]} 58.
Ke5 {[%clk 0:00:27.6]} 58... Re1+ {[%clk 0:00:20.8]} 59. Kd5 {[%clk 0:00:28.4]}
1/2-1/2

[Event "*** Titled Tuesday Blitz"]
[Site "Chess.com"]
[Date "2018.07.03"]
[Round "2"]
[White "nitpicker"]
[Black "DishonorOnYourCow"]
[Result "1-0"]
[WhiteElo "2116"]
[BlackElo "2252"]
[TimeControl "180+2"]
[EndTime "13:24:48 PDT"]
[Termination "nitpicker won by resignation"]

1. d4 {[%clk 0:03:01.9]} 1... Nf6 {[%clk 0:03:00.6]} 2. Nf3 {[%clk 0:03:02.2]}
2... g6 {[%clk 0:03:01.8]} 3. b4 {[%clk 0:03:02.2]} 3... d5 {[%clk 0:03:00.5]}
4. e3 {[%clk 0:03:00.3]} 4... Bg7 {[%clk 0:03:01.5]} 5. Nbd2 {[%clk 0:02:59.4]}
5... O-O {[%clk 0:03:01.9]} 6. c4 {[%clk 0:02:59.8]} 6... dxc4 {[%clk
0:03:01.9]} 7. Bxc4 {[%clk 0:02:59.7]} 7... a5 {[%clk 0:03:01.2]} 8. b5 {[%clk
0:02:59.3]} 8... c5 {[%clk 0:02:54.6]} 9. Bb2 {[%clk 0:02:59.9]} 9... Nbd7
{[%clk 0:02:50.3]} 10. O-O {[%clk 0:02:49.5]} 10... cxd4 {[%clk 0:02:48.3]} 11.
Bxd4 {[%clk 0:02:46.9]} 11... Nb6 {[%clk 0:02:49.1]} 12. Be2 {[%clk 0:02:38]}
12... Bf5 {[%clk 0:02:41.2]} 13. h3 {[%clk 0:02:28]} 13... Nfd5 {[%clk
0:02:31.6]} 14. Bxg7 {[%clk 0:02:24.8]} 14... Kxg7 {[%clk 0:02:31.9]} 15. Rc1
{[%clk 0:01:59.4]} 15... Nb4 {[%clk 0:02:27.7]} 16. Qb3 {[%clk 0:01:55.4]} 16...
Be6 {[%clk 0:02:26.9]} 17. Qb2+ {[%clk 0:01:55.7]} 17... Kg8 {[%clk 0:02:27.3]}
18. Rfd1 {[%clk 0:01:45.7]} 18... Nd3 {[%clk 0:02:03.8]} 19. Bxd3 {[%clk
0:01:31.7]} 19... Qxd3 {[%clk 0:02:05.7]} 20. Nd4 {[%clk 0:01:22.9]} 20... Bd5
{[%clk 0:01:39]} 21. N2f3 {[%clk 0:01:12.9]} 21... Qe4 {[%clk 0:01:23.3]} 22.
Rc7 {[%clk 0:01:12.4]} 22... Rac8 {[%clk 0:01:08.5]} 23. Rcc1 {[%clk 0:00:53.9]}
23... e5 {[%clk 0:00:56.5]} 24. Ne2 {[%clk 0:00:54]} 24... Nc4 {[%clk
0:00:47.1]} 25. Qc2 {[%clk 0:00:34.7]} 25... Qxc2 {[%clk 0:00:31.3]} 26. Rxc2
{[%clk 0:00:36.6]} 26... Bxf3 {[%clk 0:00:29.2]} 27. gxf3 {[%clk 0:00:36.9]}
27... Nxe3 {[%clk 0:00:17.4]} 28. Rxc8 {[%clk 0:00:31.8]} 28... Nxd1 {[%clk
0:00:18.5]} 29. Rc7 {[%clk 0:00:21.6]} 29... Rb8 {[%clk 0:00:18.8]} 30. Rc2
{[%clk 0:00:17.3]} 30... Rd8 {[%clk 0:00:17.7]} 31. Kf1 {[%clk 0:00:17.5]} 31...
a4 {[%clk 0:00:17.3]} 32. Ke1 {[%clk 0:00:17]} 32... a3 {[%clk 0:00:18.5]} 33.
Nc3 {[%clk 0:00:16.7]} 33... Nb2 {[%clk 0:00:14.8]} 34. Ne4 {[%clk 0:00:15.4]}
34... f5 {[%clk 0:00:15.2]} 35. Nc5 {[%clk 0:00:15.8]} 35... b6 {[%clk
0:00:16.3]} 36. Nb3 {[%clk 0:00:11.9]} 36... Rd3 {[%clk 0:00:15]} 37. Ke2 {[%clk
0:00:12]} 37... Rd4 {[%clk 0:00:14.4]} 38. Nxd4 {[%clk 0:00:11.8]} 38... exd4
{[%clk 0:00:15.8]} 39. Kd2 {[%clk 0:00:13.1]} 39... Kf7 {[%clk 0:00:14.5]} 40.
Rc6 {[%clk 0:00:13.8]} 40... Ke7 {[%clk 0:00:14.1]} 41. Kc2 {[%clk 0:00:12.8]}
41... Na4 {[%clk 0:00:14.3]} 42. Rc7+ {[%clk 0:00:13]} 42... Kd6 {[%clk
0:00:15.3]} 43. Rxh7 {[%clk 0:00:14.5]} 43... Kc5 {[%clk 0:00:15.9]} 44. Rg7
{[%clk 0:00:15.6]} 44... Kxb5 {[%clk 0:00:14]} 45. Rxg6 {[%clk 0:00:17.1]} 45...
Kc4 {[%clk 0:00:15.6]} 46. h4 {[%clk 0:00:18.2]} 46... d3+ {[%clk 0:00:16.8]}
47. Kd2 {[%clk 0:00:19.1]} 47... Nc5 {[%clk 0:00:14]} 48. Rc6 {[%clk 0:00:18.6]}
48... Kd5 {[%clk 0:00:14.3]} 49. Rc8 {[%clk 0:00:17.5]} 49... Kd4 {[%clk
0:00:10]} 50. h5 {[%clk 0:00:14.4]} 50... b5 {[%clk 0:00:11.2]} 51. Rxc5 {[%clk
0:00:13.7]} 51... Kxc5 {[%clk 0:00:11.7]} 52. h6 {[%clk 0:00:15.1]} 52... b4
{[%clk 0:00:13.6]} 53. h7 {[%clk 0:00:15.7]} 53... b3 {[%clk 0:00:15.3]} 54.
h8=Q {[%clk 0:00:16.4]} 54... b2 {[%clk 0:00:16.1]} 55. Qh1 {[%clk 0:00:14.3]}
55... Kd4 {[%clk 0:00:16.6]} 56. Qb1 {[%clk 0:00:15.1]} 56... Kc4 {[%clk
0:00:17.9]} 57. Qxd3+ {[%clk 0:00:16.5]} 57... Kb4 {[%clk 0:00:19.4]} 58. Qb1
{[%clk 0:00:17.5]} 58... Kc4 {[%clk 0:00:20.3]} 59. Kc2 {[%clk 0:00:18.7]} 1-0